fUST/lending_fUST_20240412
["ID","MTS","AMOUNT","RATE_DAILY","PERIOD"]
[322251652,1712914239278,-500.0,0.00027397,2]
[322251654,1712914239287,-500.0,0.00027397,2]
[322251656,1712914239296,-500.0,0.00027397,2]
[322251658,1712914239305,-500.0,0.00027397,2]
[322251660,1712914239314,-500.0,0.00027397,2]
[322251662,1712914239323,-500.0,0.00027397,2]
[322251664,1712914239332,-500.0,0.00027397,2]
[322251666,1712914239341,-432.00653899,0.00027397,2]
[322251668,1712914239351,-505.2499761,0.00027397,2]
[322251670,1712914239360,-500.0,0.00027397,2]
[322251672,1712914239368,-500.0,0.00027397,2]
[322251674,1712914239377,-500.0,0.00027397,2]
[322251677,1712914239387,-500.0,0.00027397,2]
[322251678,1712914239396,-500.0,0.00027397,2]
[322251680,1712914239405,-500.0,0.00027397,2]
[322251682,1712914239414,-500.0,0.00027397,2]
[322251684,1712914239423,-500.0,0.00027397,2]
[322251687,1712914239433,-500.0,0.00027397,2]
[322251688,1712914239443,-573.03156331,0.00027397,2]
[322251690,1712914239454,-500.0,0.00027397,2]
[322251692,1712914239463,-500.0,0.00027397,2]
[322251694,1712914239474,-500.0,0.00027397,2]
[322251696,1712914239485,-500.0,0.00027397,2]
[322251698,1712914239495,-500.0,0.00027397,2]
[322251701,1712914239505,-500.0,0.00027397,2]
[322251703,1712914239515,-500.0,0.00027397,2]
[322251705,1712914239524,-500.0,0.00027397,2]
[322251706,1712914239535,-500.0,0.00027397,2]
[322251709,1712914239545,-500.0,0.00027397,2]
[322251711,1712914239555,-500.0,0.00027397,2]
[322251712,1712914239564,-500.0,0.00027397,2]
[322251714,1712914239573,-500.0,0.00027397,2]
[322251716,1712914239582,-500.0,0.00027397,2]
[322251718,1712914239591,-500.0,0.00027397,2]
[322251720,1712914239602,-500.0,0.00027397,2]
[322251722,1712914239611,-500.0,0.00027397,2]
[322251724,1712914239620,-500.0,0.00027397,2]
[322251726,1712914239629,-500.0,0.00027397,2]
[322251728,1712914239638,-500.0,0.00027397,2]
[322251730,1712914239647,-500.0,0.00027397,2]
[322251732,1712914239656,-500.0,0.00027397,2]
[322251734,1712914239665,-500.0,0.00027397,2]
[322251736,1712914239674,-500.0,0.00027397,2]
[322251738,1712914239683,-500.0,0.00027397,2]
[322251740,1712914239692,-500.0,0.00027397,2]
[322251742,1712914239702,-500.0,0.00027397,2]
[322251744,1712914239711,-503.21998664,0.00027397,2]
[322251746,1712914239722,-500.0,0.00027397,2]
[322251748,1712914239731,-288.52461699,0.00027397,2]
[322251750,1712914239740,-500.0,0.00027397,2]
[322251752,1712914239750,-865.65,0.00027397,2]
[322251755,1712914239759,-500.0,0.00027397,2]
[322251757,1712914239769,-500.0,0.00027397,2]
[322251759,1712914239778,-500.0,0.00027397,2]
[322251761,1712914239787,-500.0,0.00027397,2]
[322251762,1712914239797,-504.864169,0.00027397,2]
[322251765,1712914239806,-500.0,0.00027397,2]
[322251767,1712914239815,-500.0,0.00027397,2]
[322251769,1712914239825,-882.5,0.00027397,2]
[322251771,1712914239834,-500.0,0.00027397,2]
[322251773,1712914239843,-500.0,0.00027397,2]
[322251775,1712914239854,-440.23207232,0.00027397,2]
[322251777,1712914239863,-500.0,0.00027397,2]
[322251779,1712914239872,-500.0,0.00027397,2]
[322251781,1712914239881,-500.0,0.00027397,2]
[322251783,1712914239890,-500.0,0.00027397,2]
[322251785,1712914239901,-500.0,0.00027397,2]
[322251787,1712914239911,-500.0,0.00027397,2]
[322251789,1712914239920,-1130.52,0.00027397,2]
[322251791,1712914239929,-360.99868882,0.00027397,2]
[322251793,1712914239938,-500.0,0.00027397,2]
[322251795,1712914239950,-500.0,0.00027397,2]
[322251797,1712914239959,-500.0,0.00027397,2]
[322251799,1712914239968,-500.0,0.00027397,2]
[322251801,1712914239977,-500.0,0.00027397,2]
[322251803,1712914239987,-500.0,0.00027397,2]
[322251805,1712914239996,-500.0,0.00027397,2]
[322251807,1712914240005,-617.2,0.00027397,2]
[322251808,1712914240014,-500.0,0.00027397,2]
[322251811,1712914240026,-500.0,0.00027397,2]
[322251813,1712914240036,-604.13231368,0.00027397,2]
[322251815,1712914240045,-2596.78,0.00027397,2]
[322251816,1712914240054,-500.0,0.00027397,2]
[322251819,1712914240063,-500.0,0.00027397,2]
[322251821,1712914240073,-500.0,0.00027397,2]
[322251823,1712914240082,-552.55,0.00027397,2]
[322251824,1712914240091,-500.0,0.00027397,2]
[322251827,1712914240101,-166.666666,0.00027397,2]
[322251829,1712914240110,-420.0,0.00027499,2]
[322251830,1712914240119,-500.0,0.0002767,2]
[322251832,1712914240128,-458.36466841,0.0002767,2]
[322251835,1712914240138,-569.7,0.00027671,2]
[322251836,1712914240147,-460.66,0.00027671,2]
[322251838,1712914240156,-500.0,0.00027671,2]
[322251840,1712914240165,-500.0,0.00027671,2]
[322251842,1712914240174,-500.0,0.00027671,2]
[322251844,1712914240183,-500.0,0.00027671,2]
[322251846,1712914240192,-500.0,0.00027671,2]
[322251848,1712914240201,-500.0,0.00027671,2]
[322251850,1712914240211,-500.0,0.00027671,2]
[322251852,1712914240220,-500.0,0.00027671,2]
[322251854,1712914240229,-172.50814298,0.00027671,2]
[322251856,1712914240238,-500.0,0.00027671,2]
[322251858,1712914240247,-500.0,0.00027671,2]
[322251860,1712914240256,-500.0,0.00027671,2]
[322251863,1712914240266,-500.0,0.00027671,2]
[322251865,1712914240275,-500.0,0.00027671,2]
[322251866,1712914240285,-500.0,0.00027671,2]
[322251869,1712914240294,-548.46,0.00027671,2]
[322251872,1712914240303,-500.0,0.00027671,2]
[322251876,1712914240312,-500.0,0.00027671,2]
[322251878,1712914240321,-500.0,0.00027671,2]
[322251881,1712914240332,-500.0,0.00027671,2]
[322251883,1712914240341,-500.0,0.00027671,2]
[322251885,1712914240352,-500.0,0.00027671,2]
[322251886,1712914240361,-500.0,0.00027671,2]
[322251888,1712914240370,-381.74,0.00027671,2]
[322251890,1712914240379,-500.0,0.00027671,2]
[322251892,1712914240388,-500.0,0.00027671,2]
[322251894,1712914240397,-494.91,0.00027671,2]
[322251896,1712914240406,-500.0,0.00027671,2]
[322251898,1712914240414,-500.0,0.00027671,2]
[322251900,1712914240423,-500.0,0.00027671,2]
[322251902,1712914240432,-497.67403555,0.00027671,2]
[322251904,1712914240441,-500.0,0.00027671,2]
[322251906,1712914240450,-865.65,0.00027671,2]
[322251908,1712914240459,-500.0,0.00027671,2]
[322251910,1712914240468,-500.0,0.00027671,2]
[322251912,1712914240477,-533.75,0.00027671,2]
[322251914,1712914240487,-500.0,0.00027671,2]
[322251916,1712914240495,-500.0,0.00027671,2]
[322251918,1712914240504,-882.5,0.00027671,2]
[322251920,1712914240513,-500.0,0.00027671,2]
[322251922,1712914240522,-500.0,0.00027671,2]
[322251923,1712914240531,-500.0,0.00027671,2]
[322251924,1712914240541,-500.0,0.00027671,2]
[322251925,1712914240550,-1130.52,0.00027671,2]
[322251926,1712914240559,-500.0,0.00027671,2]
[322251927,1712914240569,-500.0,0.00027671,2]
[322251928,1712914240577,-500.0,0.00027671,2]
[322251929,1712914240586,-500.0,0.00027671,2]
[322251930,1712914240596,-203.09855105,0.00027671,2]
[322251931,1712914240607,-2596.78,0.00027671,2]
[322251932,1712914240615,-500.0,0.00027671,2]
[322251933,1712914240624,-500.0,0.00027671,2]
[322251938,1712914240717,-633.78,0.00027671,2]
[322251941,1712914240727,-500.0,0.00027945,2]
[322251943,1712914240736,-500.0,0.00027945,2]
[322251945,1712914240746,-341.64,0.00027945,2]
[322251946,1712914240755,-500.0,0.00027945,2]
[322251948,1712914240764,-500.0,0.00027945,2]
[322251950,1712914240773,-314.34,0.00027945,2]
[322251952,1712914240782,-500.0,0.00027945,2]
[322251954,1712914240792,-500.0,0.00027945,2]
[322251956,1712914240801,-361.34,0.00027945,2]
[322251958,1712914240810,-500.0,0.00027945,2]
[322251960,1712914240819,-500.0,0.00027945,2]
[322251962,1712914240828,-500.0,0.00027945,2]
[322251964,1712914240837,-500.0,0.00027945,2]
[322251966,1712914240847,-459.68,0.00027945,2]
[322251968,1712914240857,-500.0,0.00027945,2]
[322251970,1712914240867,-500.0,0.00027945,2]
[322251972,1712914240876,-865.65,0.00027945,2]
[322251974,1712914240885,-598.26,0.00027945,2]
[322251976,1712914240894,-500.0,0.00027945,2]
[322251978,1712914240903,-638.08,0.00027945,2]
[322251980,1712914240912,-882.5,0.00027945,2]
[322251982,1712914240922,-500.0,0.00027945,2]
[322251984,1712914240931,-500.0,0.00027945,2]
[322251986,1712914240941,-1130.52,0.00027945,2]
[322251988,1712914240953,-500.0,0.00027945,2]
[322251990,1712914240962,-445.2,0.00027945,2]
[322251992,1712914240971,-2596.78,0.00027945,2]
[322251994,1712914240981,-500.0,0.00027945,2]
[322251996,1712914240991,-500.0,0.00027945,2]
[322251998,1712914241000,-166.666666,0.00028038,2]
[322252000,1712914241009,-500.0,0.00028219,2]
[322252002,1712914241019,-500.0,0.00028219,2]
[322252004,1712914241029,-235.98,0.00028219,2]
[322252006,1712914241038,-500.0,0.00028219,2]
[322252008,1712914241048,-500.0,0.00028219,2]
[322252010,1712914241057,-500.0,0.00028219,2]
[322252012,1712914241065,-500.0,0.00028219,2]
[322252014,1712914241074,-500.0,0.00028219,2]
[322252016,1712914241083,-634.85,0.00028219,2]
[322252018,1712914241093,-564.78,0.00028219,2]
[322252020,1712914241103,-500.0,0.00028219,2]
[322252022,1712914241114,-500.0,0.00028219,2]
[322252024,1712914241123,-865.65,0.00028219,2]
[322252026,1712914241133,-500.0,0.00028219,2]
[322252029,1712914241142,-882.5,0.00028219,2]
[322252030,1712914241151,-500.0,0.00028219,2]
[322252032,1712914241161,-500.0,0.00028219,2]
[322252034,1712914241170,-1130.52,0.00028219,2]
[322252036,1712914241179,-500.0,0.00028219,2]
[322252038,1712914241188,-2596.78,0.00028219,2]
[322252040,1712914241197,-500.0,0.00028219,2]
[322252042,1712914241206,-500.0,0.00028219,2]
[322252044,1712914241215,-500.0,0.00028493,2]
[322252046,1712914241224,-447.86,0.00028493,2]
[322252048,1712914241233,-329.02,0.00028493,2]
[322252050,1712914241242,-345.7,0.00028493,2]
[322252052,1712914241251,-481.28,0.00028493,2]
[322252054,1712914241260,-537.26268478,0.00028493,2]
[322252056,1712914241269,-500.0,0.00028493,2]
[322252058,1712914241278,-500.0,0.00028493,2]
[322252060,1712914241287,-500.0,0.00028493,2]
[322252062,1712914241296,-865.65,0.00028493,2]
[322252064,1712914241305,-500.0,0.00028493,2]
[322252066,1712914241314,-882.5,0.00028493,2]
[322252068,1712914241323,-500.0,0.00028493,2]
[322252070,1712914241332,-500.0,0.00028493,2]
[322252072,1712914241341,-1130.52,0.00028493,2]
[322252074,1712914241350,-500.0,0.00028493,2]
[322252076,1712914241361,-2596.78,0.00028493,2]
[322252078,1712914241371,-500.0,0.00028493,2]
[322252080,1712914241380,-500.0,0.00028493,2]
[322252082,1712914241389,-166.666666,0.00028679,2]
[322252084,1712914241398,-293.58,0.00028767,2]
[322252086,1712914241407,-500.0,0.00028767,2]
[322252088,1712914241416,-500.0,0.00028767,2]
[322252090,1712914241425,-500.0,0.00028767,2]
[322252092,1712914241434,-865.65,0.00028767,2]
[322252094,1712914241442,-500.0,0.00028767,2]
[322252096,1712914241451,-882.5,0.00028767,2]
[322252098,1712914241460,-500.0,0.00028767,2]
[322252100,1712914241469,-178.64,0.00028767,2]
[322252102,1712914241478,-1130.52,0.00028767,2]
[322252104,1712914241488,-500.0,0.00028767,2]
[322252106,1712914241497,-2596.78,0.00028767,2]
[322252108,1712914241506,-500.0,0.00028767,2]
[322252110,1712914241515,-314.38332989,0.00028767,2]
[322252112,1712914241524,-500.0,0.00029041,2]
[322252114,1712914241533,-500.0,0.00029041,2]
[322252116,1712914241542,-500.0,0.00029041,2]
[322252117,1712914241551,-865.65,0.00029041,2]
[322252119,1712914241560,-500.0,0.00029041,2]
[322252122,1712914241570,-882.5,0.00029041,2]
[322252124,1712914241580,-500.0,0.00029041,2]
[322252125,1712914241589,-1130.52,0.00029041,2]
[322252128,1712914241598,-500.0,0.00029041,2]
[322252129,1712914241608,-2596.78,0.00029041,2]
[322252131,1712914241617,-500.0,0.00029041,2]
[322252133,1712914241626,-500.0,0.00029315,2]
[322252135,1712914241635,-500.0,0.00029315,2]
[322252137,1712914241645,-500.0,0.00029315,2]
[322252139,1712914241654,-865.65,0.00029315,2]
[322252141,1712914241663,-316.73909979,0.00029315,2]
[322252143,1712914241673,-882.5,0.00029315,2]
[322252146,1712914241683,-500.0,0.00029315,2]
[322252148,1712914241692,-1130.52,0.00029315,2]
[322252150,1712914241701,-500.0,0.00029315,2]
[322252152,1712914241711,-2596.78,0.00029315,2]
[322252153,1712914241721,-500.0,0.00029315,2]
[322252155,1712914241730,-166.666666,0.00029321,2]
[322252158,1712914241741,-500.0,0.00029589,2]
[322252159,1712914241750,-478.1986685,0.00029589,2]
[322252162,1712914241760,-500.0,0.00029589,2]
[322252164,1712914241770,-865.65,0.00029589,2]
[322252165,1712914241780,-882.5,0.00029589,2]
[322252167,1712914241789,-500.0,0.00029589,2]
[322252169,1712914241798,-1130.52,0.00029589,2]
[322252171,1712914241807,-553.68,0.00029589,2]
[322252173,1712914241816,-2596.78,0.00029589,2]
[322252175,1712914241826,-500.0,0.00029589,2]
[322252177,1712914241835,-500.0,0.00029863,2]
[322252179,1712914241844,-500.0,0.00029863,2]
[322252181,1712914241854,-865.65,0.00029863,2]
[322252183,1712914241863,-882.5,0.00029863,2]
[322252185,1712914241873,-500.0,0.00029863,2]
[322252187,1712914241882,-1130.52,0.00029863,2]
[322252189,1712914241892,-500.0,0.00029863,2]
[322252191,1712914241901,-2596.78,0.00029863,2]
[322252193,1712914241910,-166.666666,0.00029962,2]
[322252195,1712914241919,-278.0,0.0003,2]
[322252197,1712914241928,-500.0,0.00030136,2]
[322252199,1712914241938,-500.0,0.00030136,2]
[322252201,1712914241950,-865.65,0.00030136,2]
[322252203,1712914241960,-882.5,0.00030136,2]
[322252205,1712914241969,-500.0,0.00030136,2]
[322252207,1712914241981,-1130.52,0.00030136,2]
[322252209,1712914241991,-500.0,0.00030136,2]
[322252211,1712914241999,-2596.78,0.00030136,2]
[322252213,1712914242008,-587.0,0.00030249,2]
[322252215,1712914242019,-500.0,0.0003041,7]
[322252217,1712914242028,-500.0,0.0003041,7]
[322252219,1712914242038,-865.65,0.0003041,7]
[322252221,1712914242048,-882.5,0.0003041,7]
[322252223,1712914242057,-500.0,0.0003041,7]
[322252225,1712914242066,-1130.52,0.0003041,7]
[322252227,1712914242075,-263.27,0.0003041,7]
[322252229,1712914242084,-2596.78,0.0003041,7]
[322252231,1712914242094,-166.666666,0.00030603,2]
[322252233,1712914242103,-500.0,0.00030684,7]
[322252235,1712914242113,-500.0,0.00030684,7]
[322252237,1712914242123,-865.65,0.00030684,7]
[322252239,1712914242133,-882.5,0.00030684,7]
[322252241,1712914242142,-500.0,0.00030684,7]
[322252243,1712914242152,-1130.52,0.00030684,7]
[322252245,1712914242161,-2596.78,0.00030684,7]
[322252247,1712914242170,-500.0,0.00030958,7]
[322252249,1712914242180,-500.0,0.00030958,7]
[322252252,1712914242189,-865.65,0.00030958,7]
[322252254,1712914242199,-882.5,0.00030958,7]
[322252255,1712914242208,-500.0,0.00030958,7]
[322252257,1712914242217,-1130.52,0.00030958,7]
[322252259,1712914242226,-170.87715746,0.00030958,7]
[322252268,1712914242296,-500.0,0.00027397,2]
[322252270,1712914242305,-182.41201491,0.00027671,2]
[322253395,1712915253143,-250.0,0.00026023,2]
[322253396,1712915253166,-158.62437047,0.00026024,2]
[322253397,1712915253186,-844.03054707,0.00026024,2]
[322253449,1712915432158,-211.55365242,0.00026013,2]
[322253451,1712915432167,-225.63849083,0.00026014,2]
[322253453,1712915432178,-522.7857071,0.00026015,4]
[322253455,1712915432187,-250.0,0.00026015,2]
[322253458,1712915432196,-947.91686564,0.00026015,2]
[322253461,1712915432205,-663.37787038,0.00026016,2]
[322253464,1712915432217,-932.29811064,0.00026016,2]
[322253554,1712915437934,-259.09825905,0.00026016,2]
[322253556,1712915437943,-300.0,0.00026025,2]
[322253558,1712915437952,-300.0,0.00026025,2]
[322253560,1712915437961,-104.89174096,0.00026026,2]
[322253617,1712915438505,-8884.41650864,0.00026026,2]
[322253619,1712915438515,-164.60794167,0.00026416,2]
[322253621,1712915438524,-470.13868753,0.00027395,2]
[322253623,1712915438535,-162.95786103,0.00027395,2]
[322253626,1712915438544,-267.61942013,0.00027395,2]
[322253627,1712915438553,-268.82867148,0.00027395,2]
[322253630,1712915438563,-560.59044626,0.00027395,2]
[322253631,1712915438572,-158.48782423,0.00027395,2]
[322253633,1712915438581,-154.92253873,0.00027396,2]
[322253636,1712915438590,-500.0,0.00027397,2]
[322253638,1712915438599,-500.0,0.00027397,2]
[322253640,1712915438609,-500.0,0.00027397,2]
[322253641,1712915438618,-500.0,0.00027397,2]
[322253643,1712915438627,-500.0,0.00027397,2]
[322253645,1712915438636,-500.0,0.00027397,2]
[322253647,1712915438645,-500.0,0.00027397,2]
[322253649,1712915438655,-500.0,0.00027397,2]
[322253652,1712915438664,-500.0,0.00027397,2]
[322253653,1712915438673,-611.17876315,0.00027397,2]
[322253656,1712915438684,-516.25016798,0.00027397,2]
[322253658,1712915438693,-500.0,0.00027397,2]
[322253659,1712915438702,-500.0,0.00027397,2]
[322253662,1712915438712,-500.0,0.00027397,2]
[322253664,1712915438721,-500.0,0.00027397,2]
[322253666,1712915438729,-633.78,0.00027397,2]
[322253668,1712915438738,-500.0,0.00027397,2]
[322253670,1712915438747,-500.0,0.00027397,2]
[322253672,1712915438756,-500.0,0.00027397,2]
[322253674,1712915438765,-615.32305045,0.00027397,2]
[322253676,1712915438773,-500.0,0.00027397,2]
[322253678,1712915438782,-500.0,0.00027397,2]
[322253680,1712915438791,-500.0,0.00027397,2]
[322253682,1712915438800,-500.0,0.00027397,2]
[322253684,1712915438809,-500.0,0.00027397,2]
[322253686,1712915438818,-500.0,0.00027397,2]
[322253688,1712915438827,-500.0,0.00027397,2]
[322253690,1712915438836,-500.0,0.00027397,2]
[322253692,1712915438846,-500.0,0.00027397,2]
[322253694,1712915438855,-500.0,0.00027397,2]
[322253696,1712915438864,-500.0,0.00027397,2]
[322253698,1712915438873,-500.0,0.00027397,2]
[322253700,1712915438883,-500.0,0.00027397,2]
[322253702,1712915438892,-500.0,0.00027397,2]
[322253704,1712915438902,-500.0,0.00027397,2]
[322253706,1712915438911,-500.0,0.00027397,2]
[322253708,1712915438920,-500.0,0.00027397,2]
[322253710,1712915438929,-500.0,0.00027397,2]
[322253712,1712915438938,-500.0,0.00027397,2]
[322253714,1712915438947,-506.0829126,0.00027397,2]
[322253716,1712915438956,-500.0,0.00027397,2]
[322253718,1712915438965,-432.00653899,0.00027397,2]
[322253720,1712915438974,-500.0,0.00027397,2]
[322253722,1712915438983,-500.0,0.00027397,2]
[322253724,1712915438993,-500.0,0.00027397,2]
[322253726,1712915439002,-500.0,0.00027397,2]
[322253728,1712915439012,-500.0,0.00027397,2]
[322253729,1712915439021,-500.0,0.00027397,2]
[322253732,1712915439030,-500.0,0.00027397,2]
[322253734,1712915439040,-500.0,0.00027397,2]
[322253736,1712915439049,-500.0,0.00027397,2]
[322253738,1712915439058,-500.0,0.00027397,2]
[322253752,1712915439181,-500.0,0.00027397,2]
[322253754,1712915439191,-573.03156331,0.00027397,2]
[322253756,1712915439202,-500.0,0.00027397,2]
[322253758,1712915439211,-508.37236142,0.00027397,2]
[322253760,1712915439220,-347.84297722,0.00027397,2]
[322253762,1712915439229,-500.0,0.00027397,2]
[322253764,1712915439240,-500.0,0.00027397,2]
[322253766,1712915439250,-500.0,0.00027397,2]
[322253768,1712915439259,-500.0,0.00027397,2]
[322253770,1712915439269,-500.0,0.00027397,2]
[322253772,1712915439278,-500.0,0.00027397,2]
[322253774,1712915439287,-500.0,0.00027397,2]
[322253776,1712915439296,-500.0,0.00027397,2]
[322253779,1712915439312,-500.0,0.00027397,2]
[322253781,1712915439321,-500.0,0.00027397,2]
[322253783,1712915439331,-188.76934425,0.00027397,2]
[322253785,1712915439340,-500.0,0.00027397,2]
[322253787,1712915439349,-500.0,0.00027397,2]
[322253789,1712915439358,-500.0,0.00027397,2]
[322253791,1712915439368,-500.0,0.00027397,2]
[322253793,1712915439377,-500.0,0.00027397,2]
[322253795,1712915439387,-500.0,0.00027397,2]
[322253796,1712915439397,-500.0,0.00027397,2]
[322253799,1712915439407,-577.3584247,0.00027397,2]
[322253801,1712915439416,-288.52461699,0.00027397,2]
[322253803,1712915439425,-500.0,0.00027397,2]
[322253805,1712915439434,-500.0,0.00027397,2]
[322253807,1712915439443,-300.0,0.00027397,2]
[322253809,1712915439453,-500.0,0.00027397,2]
[322253811,1712915439462,-956.4,0.00027397,2]
[322253813,1712915439470,-513.42,0.00027397,2]
[322253814,1712915439480,-500.0,0.00027397,2]
[322253818,1712915439490,-500.0,0.00027397,2]
[322253819,1712915439499,-500.0,0.00027397,2]
[322253821,1712915439508,-500.0,0.00027397,2]
[322253824,1712915439518,-500.0,0.00027397,2]
[322253826,1712915439527,-500.0,0.00027397,2]
[322253828,1712915439536,-920.87,0.00027397,2]
[322253830,1712915439545,-500.0,0.00027397,2]
[322253832,1712915439554,-500.0,0.00027397,2]
[322253834,1712915439563,-500.0,0.00027397,2]
[322253836,1712915439573,-500.0,0.00027397,2]
[322253837,1712915439582,-500.0,0.00027397,2]
[322253839,1712915439591,-500.0,0.00027397,2]
[322253842,1712915439600,-500.0,0.00027397,2]
[322253844,1712915439609,-500.0,0.00027397,2]
[322253845,1712915439618,-259.92770034,0.00027397,2]
[322253847,1712915439627,-507.03594079,0.00027397,2]
[322253849,1712915439636,-504.864169,0.00027397,2]
[322253851,1712915439646,-500.0,0.00027397,2]
[322253853,1712915439655,-500.0,0.00027397,2]
[322253856,1712915439664,-440.23207232,0.00027397,2]
[322253858,1712915439673,-500.0,0.00027397,2]
[322253860,1712915439684,-500.0,0.00027397,2]
[322253862,1712915439694,-1275.92,0.00027397,2]
[322253864,1712915439703,-500.0,0.00027397,2]
[322253866,1712915439712,-500.0,0.00027397,2]
[322253867,1712915439722,-500.0,0.00027397,2]
[322253870,1712915439731,-500.0,0.00027397,2]
[322253871,1712915439741,-500.0,0.00027397,2]
[322253874,1712915439750,-500.0,0.00027397,2]
[322253876,1712915439759,-158.09608025,0.00027397,2]
[322253878,1712915439768,-500.0,0.00027397,2]
[322253879,1712915439777,-2709.69,0.00027397,2]
[322253882,1712915439786,-500.0,0.00027397,2]
[322253883,1712915439795,-500.0,0.00027397,2]
[322253886,1712915439805,-532.65883253,0.00027397,2]
[322253888,1712915439814,-500.0,0.00027397,2]
[322253889,1712915439823,-500.0,0.00027397,2]
[322253891,1712915439832,-500.0,0.00027397,2]
[322253893,1712915439841,-617.2,0.00027397,2]
[322253896,1712915439851,-500.0,0.00027397,2]
[322253898,1712915439861,-500.0,0.00027397,2]
[322253899,1712915439871,-500.0,0.00027397,2]
[322253901,1712915439881,-500.0,0.00027397,2]
[322253903,1712915439890,-500.0,0.00027397,2]
[322253905,1712915439899,-500.0,0.00027397,2]
[322253907,1712915439908,-500.0,0.00027397,2]
[322253909,1712915439917,-500.0,0.00027397,2]
[322253911,1712915439927,-168.084084,0.00027397,2]
[322253913,1712915439935,-166.666666,0.00027397,2]
[322253915,1712915439944,-12490.13308585,0.00027643,2]
[322253917,1712915439953,-500.0,0.0002767,2]
[322253919,1712915439963,-458.36466841,0.0002767,2]
[322253922,1712915439972,-574.86754931,0.00027671,2]
[322253924,1712915439982,-500.0,0.00027671,2]
[322253926,1712915439992,-19486.61650083,0.00027671,14]
[322253928,1712915440001,-500.0,0.00027671,2]
[322253929,1712915440010,-500.0,0.00027671,2]
[322253932,1712915440020,-500.0,0.00027671,2]
[322253933,1712915440029,-500.0,0.00027671,2]
[322253935,1712915440038,-500.0,0.00027671,2]
[322253938,1712915440047,-500.0,0.00027671,2]
[322253939,1712915440057,-505.2499761,0.00027671,2]
[322253941,1712915440066,-500.0,0.00027671,2]
[322253944,1712915440076,-500.0,0.00027671,2]
[322253945,1712915440085,-500.0,0.00027671,2]
[322253947,1712915440094,-317.58798509,0.00027671,2]
[322253949,1712915440103,-500.0,0.00027671,2]
[322253951,1712915440112,-500.0,0.00027671,2]
[322253953,1712915440121,-500.0,0.00027671,2]
[322253955,1712915440130,-500.0,0.00027671,2]
[322253958,1712915440139,-500.0,0.00027671,2]
[322253960,1712915440149,-500.0,0.00027671,2]
[322253962,1712915440158,-598.26,0.00027671,2]
[322253964,1712915440167,-172.50814298,0.00027671,2]
[322253965,1712915440177,-500.0,0.00027671,2]
[322253967,1712915440186,-500.0,0.00027671,2]
[322253970,1712915440196,-500.0,0.00027671,2]
[322253971,1712915440206,-500.0,0.00027671,2]
[322253974,1712915440215,-500.0,0.00027671,2]
[322253976,1712915440224,-500.0,0.00027671,2]
[322253978,1712915440234,-548.46,0.00027671,2]
[322253980,1712915440243,-500.0,0.00027671,2]
[322253982,1712915440252,-500.0,0.00027671,2]
[322253983,1712915440261,-500.0,0.00027671,2]